Cogmind - Beta 12 @@@ ROGUE MODE // 2023.03.29 @ 16:54:22 Player: ArabianSandBoa Result: Destroyed by G-47 Trooper with Particle Gun Performance ------------- Evolutions (2) 1000 Regions Visited (7) 1400 Robots Destroyed (86) 430 Value Destroyed (4048) 4048 Prototype IDs (34) 680 Alien Tech Used (0) 0 Bonus (1604) 1604 TOTAL SCORE: 9162 Bonus ------- High Alert Combat Kills 674 Follower Combat Kills 62 Entered Garrisons 200 Used RIF Installer 500 Aligned with FarCom 300 Friendly Fire -132 Cogmind --------- Core Integrity 0/550 Matter 235/300 Energy 95/100 System Corruption 8% Temperature Cool (36) Movement Rolling (100) Location -8/Materials Parts ------- > --- POWER (1) -------- (None) > --- PROPULSION (2) --- Compact Wheel > --- UTILITY (6) ------ Lightpack 2.0 Relay Coupler [Heavy] (19) > --- WEAPON (2) ------- Spear > --- INVENTORY (40) --- Improved Cesium-ion Thruster Improved Sensor Array Weapon Cycler Hardened Medium Armor Plating Hacking Suite Relay Coupler [NC] (27) Relay Coupler [Swarmer] (50) Relay Coupler [Cutter] (34) Relay Coupler [Grunt] (27) Relay Coupler [Grunt] (40) Relay Coupler [Grunt] (29) Relay Coupler [Brawler] (35) Relay Coupler [Sentry] (26) Relay Coupler [Sentry] (31) Relay Coupler [Specialist] (33) Relay Coupler [Hunter] (20) Trap Reconfigurator Peak State ------------ > --- POWER ------------ Deuterium Engine > --- PROPULSION ------- Armored Treads Advanced Treads > --- UTILITY ---------- Improved Heat Sink Lightpack 2.0 Improved Target Analyzer Improved Medium Armor Plating > --- WEAPON ----------- Proton Cannon Magnetic Acceleration Cannon > --- INVENTORY -------- Improved VTOL Module Improved VTOL Module Improved VTOL Module Improved Cesium-ion Thruster Improved Sensor Array Weapon Cycler Improved Medium Armor Plating Relay Coupler [NC] Relay Coupler [NC] Relay Coupler [Swarmer] Relay Coupler [Cutter] Relay Coupler [Grunt] Relay Coupler [Grunt] Relay Coupler [Brawler] Relay Coupler [Brawler] Relay Coupler [Sentry] Relay Coupler [Sentry] Relay Coupler [Specialist] Relay Coupler [Specialist] Relay Coupler [Hunter] Relay Coupler [Heavy] Trap Reconfigurator Heavy EM Shotgun Magnetic Acceleration Cannon Remote Datajack Spear [Rating: 71] Favorites ----------- Power Deuterium Engine Engine Deuterium Engine Propulsion Compact Wheel Treads Advanced Treads Leg Aluminum Leg Wheel Compact Wheel Flight Unit Improved Flight Unit Utility Improved Heat Sink Device Improved Heat Sink Storage Lightpack 2.0 Processor Improved Target Analyzer Hackware Relay Coupler [Heavy] Protection Improved Medium Armor Plating Weapon Advanced Beam Rifle Energy Gun Advanced Beam Rifle Energy Cannon Proton Cannon Ballistic Gun Light Assault Rifle Ballistic Cannon Magnetic Acceleration Cannon Special Weapon Remote Datajack Piercing Weapon Spear Build | -11 -10 -10 -10 -9 -8 -8 -8 ------- Run | Jun Mat Min Exi Min Mat Gar Mat Slots Evolved 4 | . . . . . 4 . . Power . | . . . . . . . . Propulsion . | . . . . . . . . Utility 4 | . . . . . 4 . . Weapon . | . . . . . . . . Parts Attached 75 | . 1 . 4 . 30 29 11 Power 6 | . . . . . 1 4 1 Engine 6 | . . . . . 1 4 1 Core . | . . . . . . . . Reactor . | . . . . . . . . Propulsion 15 | . . . 2 . 6 4 3 Treads 4 | . . . . . . 4 . Leg . | . . . . . . . . Wheel 8 | . . . 2 . 3 . 3 Hover . | . . . . . . . . Flight 3 | . . . . . 3 . . Utility 25 | . 1 . 1 . 11 9 3 Device 7 | . . . . . 6 1 . Storage 3 | . . . 1 . 1 1 . Processor 2 | . . . . . 1 1 . Hackware 1 | . . . . . . . 1 Protection 12 | . 1 . . . 3 6 2 Artifact . | . . . . . . . . Weapon 29 | . . . 1 . 12 12 4 Energy Gun 11 | . . . . . 8 3 . Energy Cannon 4 | . . . . . . 2 2 Ballistic Gun 5 | . . . 1 . 2 2 . Ballistic Cannon 6 | . . . . . 2 4 . Launcher . | . . . . . . . . Special Weapon 2 | . . . . . . 1 1 Impact Weapon . | . . . . . . . . Slashing Weapon . | . . . . . . . . Piercing Weapon 1 | . . . . . . . 1 Special Melee Weapon . | . . . . . . . . Unidentified Prototypes 7 | . . . . . 7 . . Corrupted Parts 1 | . . . . . . 1 . System Corruption 4 | . . . . . . 4 . Parts Lost 20 | . . . . . 2 7 11 Power 3 | . . . . . . 1 2 Propulsion 5 | . . . . . . 3 2 Utility 7 | . . . . . 2 2 3 Weapon 5 | . . . . . . 1 4 Highest Loss Streak 8 | . . . . . 1 5 8 To Critical Strikes . | . . . . . . . . Average Slot Usage (%) 83 | . 97 100 100 100 87 78 70 Engine 9 | . 14 14 14 14 9 9 7 Treads 6 | . . . . . . 14 5 Leg 1 | . 28 28 9 . . . . Wheel 9 | . . . 18 28 17 1 5 Device 9 | . . . . . 16 8 7 Storage 11 | . 14 14 14 14 15 9 9 Processor 4 | . . . . . . 8 8 Protection 10 | . 11 14 14 14 10 9 8 Energy Gun 9 | . 28 28 18 14 16 2 . Energy Cannon 4 | . . . . . . 7 13 Ballistic Gun 1 | . . . 9 14 . . . Ballistic Cannon 3 | . . . . . . 6 2 Naked Turns . | . . . . . . . . Heaviest Build 235 | 11 14 14 19 19 235 234 38 Greatest Support 42 | 20 20 20 26 26 26 42 26 Greatest Overweight (x) 14 | . . . . . 14 8 2 Average Overweight (x) 2 | . . . . . 7 . 1 Largest Inventory Capacity 40 | . 8 8 10 10 35 40 40 Average Capacity 33 | . 8 8 8 10 34 39 40 Most Carried 35 | . 7 7 10 10 35 35 22 Average Carried 21 | . 6 7 7 10 26 22 20 Final Capacity 40 | 8 8 8 10 10 35 40 40 Final Carried 35 | 6 7 7 10 10 35 21 17 Class Distribution -------------------- 71% | Hauler-Mutant 16% | Mutant 12% | Bothacker-Mutant Dominant Class ---------------- Mutant | -10/Materials Mutant | -10/Mines Mutant | -10/Exiles Mutant | -9/Mines Hauler-Mutant | -8/Materials Hauler-Mutant | -8/Garrison Bothacker-Mutant | -8/Materials Resources | -11 -10 -10 -10 -9 -8 -8 -8 ----------- Run | Jun Mat Min Exi Min Mat Gar Mat Matter Collected 1490 | 200 10 . . 48 292 823 117 Remotely . | . . . . . . . . Salvage Created 3284 | . 18 . . 38 1525 1297 406 Parts 200 | . 3 . . 3 92 78 24 Haulers Intercepted 7 | . . . . . 5 . 2 Recyclers Shooed 5 | . . . . . 5 . . Parts Field Recycled . | . . . . . . . . Retrieved Matter . | . . . . . . . . Parts Self-Destructed . | . . . . . . . . Prevented . | . . . . . . . . Kills | -11 -10 -10 -10 -9 -8 -8 -8 ------- Run | Jun Mat Min Exi Min Mat Gar Mat Combat Hostiles Destroyed 62 | . . . . 3 22 33 4 Guns 28 | . . . . 2 20 6 . Cannons 28 | . . . . . . 24 4 AOE 2 | . . . . 1 . 1 . Classes Destroyed 12 | . 1 . . 1 8 2 . Worker 9 | . . . . . 5 . 4 Builder 2 | . . . . . 1 . 1 Hauler 7 | . . . . . 5 . 2 Operator 3 | . 1 . . . 2 . . Watcher 2 | . . . . . 2 . . Swarmer 16 | . . . . 3 3 10 . Grunt 26 | . . . . . 10 14 2 Duelist 1 | . . . . . 1 . . Sentry 7 | . . . . . 4 3 . Specialist 6 | . . . . . 4 . 2 Programmer 5 | . . . . . . 5 . Behemoth 1 | . . . . . . 1 . Butcher 1 | . . . . . . 1 . Best Kill Streak 5 | . 1 . . 3 4 3 5 Combat Bots Only 4 | . . . . 3 3 3 4 Max Kills in Single Turn 2 | . 1 . . 1 1 2 1 Gunslinging . | . . . . . . . . Exploded 1 | . . . . 1 . 1 . Melee . | . . . . . . . . Uniques/NPCs Destroyed . | . . . . . . . . Combat | -11 -10 -10 -10 -9 -8 -8 -8 -------- Run | Jun Mat Min Exi Min Mat Gar Mat Damage Taken 3990 | . . . . 97 804 1948 1141 Core 552 | . . . . . 116 229 207 Absorbed by Shields . | . . . . . . . . Redirected to Shielding 17 | . . . . . . 17 . Core Remaining (%) 100 | 100 . . . 100 . . . Volleys Fired 257 | . 3 . 1 8 90 133 22 Largest 2 | . 2 . 2 2 2 2 2 Hottest 135 | . 80 . 80 60 122 128 135 Shots Fired 481 | . 6 . 2 16 179 233 45 Gun 280 | . 6 . 2 16 175 81 . Cannon 201 | . . . . . 4 152 45 Launcher . | . . . . . . . . Special . | . . . . . . . . Kinetic 121 | . . . . 8 7 105 1 Thermal 180 | . 3 . 1 . 136 . 40 Explosive . | . . . . . . . . Electromagnetic 180 | . 3 . 1 8 36 128 4 Robot Hit Streak 55 | . 2 . . 5 12 55 7 Robot Miss Streak 5 | . 2 . . 3 4 5 3 Penetration Max . | . . . . . . . . Secondary Targets 1 | . . . . . 1 . . Max Gunslinging Chain 1 | . . . . . 1 . . Shots Hit Robots 282 | . 3 . . 7 113 128 31 Core Hits 126 | . 1 . . 4 54 52 15 Critical Kills 1 | . . . . . . 1 . Critical Parts Destroyed 3 | . . . . . . 3 . Critical Strikes 25 | . . . . . 11 13 1 Burn 11 | . . . . . 11 . . Destroy 4 | . . . . . . 4 . Blast 5 | . . . . . . 5 . Corrupt 5 | . . . . . . 4 1 Melee Attacks 7 | . . . . . . . 7 Impact . | . . . . . . . . Slashing . | . . . . . . . . Piercing 7 | . . . . . . . 7 Sneak Attacks . | . . . . . . . . Combat Hostiles . | . . . . . . . . Follow-up Attacks . | . . . . . . . . Damage Inflicted 6770 | . 45 . . 105 2375 3528 717 Guns 3323 | . 45 . . 59 2256 963 . Cannons 2967 | . . . . . 21 2310 636 Explosions 399 | . . . . 46 98 255 . Melee 81 | . . . . . . . 81 Ramming . | . . . . . . . . Kinetic 1812 | . . . . 14 55 1743 . Thermal 2657 | . 10 . . 46 1778 255 568 Explosive . | . . . . . . . . Electromagnetic 2220 | . 35 . . 45 542 1530 68 Impact . | . . . . . . . . Slashing . | . . . . . . . . Piercing 81 | . . . . . . . 81 Highest Corruption 8 | . . . . . 1 8 8 Average Corruption 4 | . . . . . 1 5 8 Corruption Purged . | . . . . . . . . Corruption Blocked . | . . . . . . . . Effects 79 | . . . . . 9 55 15 Message Errors 20 | . . . . . 2 15 3 Matter Fused 11 | . . . . . 1 7 3 Heat Flow Errors 14 | . . . . . 1 11 2 Energy Discharges 13 | . . . . . 3 9 1 Parts Rejected 1 | . . . . . . 1 . Parts Fused 1 | . . . . . . 1 . Data Loss (minor) 5 | . . . . . 2 1 2 Data Loss (major) 7 | . . . . . . 5 2 Misfires 5 | . . . . . . 4 1 Alerts 2 | . . . . . . 1 1 Overload Shots . | . . . . . . . . Overflow Damage 159 | . . . . 26 . 120 13 Projectiles 107 | . . . . . . 94 13 Explosions 52 | . . . . 26 . 26 . Melee . | . . . . . . . . Knockbacks 32 | . . . . . 1 31 . Impact . | . . . . . . . . Kinetic 26 | . . . . . 1 25 . Secondary 6 | . . . . . . 6 . Self-Inflicted Damage 155 | . . . . 23 56 76 . Shots 5 | . . . . 1 2 2 . Rammed . | . . . . . . . . Targets Rammed . | . . . . . . . . Kicked . | . . . . . . . . Crushed . | . . . . . . . . Highest Temperature 416 | . 54 . 27 65 416 278 213 Average Temperature 68 | . 25 . 16 31 102 60 90 Received Heat Transfer 867 | . . . . . 297 399 171 Effects 2 | . . . . . 2 . . Interference 2 | . . . . . 2 . . Siege Activations . | . . . . . . . . Robots Corrupted 4 | . . . . . 1 3 . Combat Hostiles 3 | . . . . . 1 2 . Parts Fried 13 | . . . . . 4 9 . Impact Corruptions . | . . . . . . . . Robots Melted 1 | . . . . . 1 . . Combat Hostiles 1 | . . . . . 1 . . Parts Melted 10 | . . . . . 10 . . Heat Transferred 5347 | . 25 . . 50 4072 275 925 Parts Sabotaged . | . . . . . . . . Parts Stolen . | . . . . . . . . Parts Stripped . | . . . . . . . . Power Chain Reactions 7 | . . . . 1 2 4 . Missiles Intercepted . | . . . . . . . . Alert | -11 -10 -10 -10 -9 -8 -8 -8 ------- Run | Jun Mat Min Exi Min Mat Gar Mat Peak Influence 2158 | . 20 7 . 152 401 2158 1195 Initial 1051 | . . 7 . . 59 250 1051 Average 678 | . 6 7 . 16 203 1086 1063 Maximum Alert Level 5 | . . . . . 2 5 4 Low Security (%) 28 | . 100 100 . 100 54 . . Level 1 25 | . . . . . 44 21 . Level 2 7 | . . . . . 1 15 . Level 3 14 | . . . . . . 14 82 Level 4 12 | . . . . . . 22 17 Level 5 11 | . . . . . . 24 . High Security . | . . . . . . . . Max Security . | . . . . . . . . Squads Dispatched 9 | . . . . . 5 . 4 Investigation 1 | . . . . . . . 1 Extermination . | . . . . . . . . Reinforcement 6 | . . . . . 4 . 2 Assault 1 | . . . . . . . 1 Garrison 1 | . . . . . 1 . . Intercept . | . . . . . . . . Searches Triggered . | . . . . . . . . Construction Impeded . | . . . . . . . . Haulers Reinforced . | . . . . . . . . Active Scanning Responses . | . . . . . . . . Cargo Convoy Interrupts . | . . . . . . . . Stealth | -11 -10 -10 -10 -9 -8 -8 -8 --------- Run | Jun Mat Min Exi Min Mat Gar Mat Distress Signals 2 | . . . . . 2 . . Communications Jammed . | . . . . . . . . Distress Signals . | . . . . . . . . Times Spotted 101 | . 3 . . 10 39 37 12 Peak Tracking Total 5 | . 2 . . 3 5 3 5 Tactical Retreats 7 | . . . . 2 3 1 1 Traps | -11 -10 -10 -10 -9 -8 -8 -8 ------- Run | Jun Mat Min Exi Min Mat Gar Mat Traps Triggered 8 | . . . . . . 7 1 Indirectly . | . . . . . . . . Trap Hack Attempts . | . . . . . . . . Triggered . | . . . . . . . . Disarmed . | . . . . . . . . Reprogrammed . | . . . . . . . . Reused 1 | . . . . . 1 . . Traps Reconfigurated 6 | . . . . . 6 . . Traps Extracted . | . . . . . . . . Installed . | . . . . . . . . Triggered 1 | . . . . . 1 . . Machines | -11 -10 -10 -10 -9 -8 -8 -8 ---------- Run | Jun Mat Min Exi Min Mat Gar Mat Machines Disabled 13 | . 1 . . . 2 9 1 Max in Single Turn 2 | . 1 . . . 1 2 1 Garrison Relay 6 | . . . . . . 6 . Phase Generator 1 | . . . . . . 1 . Machines Repaired . | . . . . . . . . Machines Sabotaged . | . . . . . . . . Overloaded Fab Kills . | . . . . . . . . Hacking | -11 -10 -10 -10 -9 -8 -8 -8 --------- Run | Jun Mat Min Exi Min Mat Gar Mat Machines Accessed 13 | . 1 . 1 . 6 4 1 Terminals 8 | . 1 . . . 3 4 . Fabricators . | . . . . . . . . Repair Stations . | . . . . . . . . Recycling Units 1 | . . . . . 1 . . Scanalyzers 2 | . . . . . 1 . 1 Garrison Access 1 | . . . . . 1 . . Total Hacks 32 | . 1 . 1 . 19 9 2 Successful 17 | . 1 . 1 . 10 3 2 Failed 15 | . . . . . 9 6 . Catastrophic 2 | . . . . . 1 1 . Database Lockouts . | . . . . . . . . Manual 3 | . . . 1 . 2 . . Terminals 20 | . 1 . . . 10 9 . Fabricators . | . . . . . . . . Repair Stations . | . . . . . . . . Recycling Units 2 | . . . . . 2 . . Scanalyzers 7 | . . . . . 5 . 2 Garrison Access 2 | . . . . . 2 . . Terminal Hacks 7 | . 1 . 1 . 2 3 . Prototype ID Bank 2 | . 1 . . . 1 . . Open Door 1 | . . . . . . 1 . Emergency Access Points 1 | . . . . . . 1 . Registered Prototypes 1 | . . . . . 1 . . Security Stations 1 | . . . . . . 1 . EX-Prototype ID Bank 1 | . . . 1 . . . . Fabricator Hacks . | . . . . . . . . Repair Station Hacks . | . . . . . . . . Recycling Unit Hacks 1 | . . . . . 1 . . Report Inventory 1 | . . . . . 1 . . Scanalyzer 6 | . . . . . 4 . 2 Insert Component 3 | . . . . . 2 . 1 Analyze 3 | . . . . . 2 . 1 Garrison Access Hacks 1 | . . . . . 1 . . Unlock Access 1 | . . . . . 1 . . Unauthorized Hacks 2 | . . . . . 2 . . Terminals 1 | . . . . . 1 . . Botnet 1 | . . . . . 1 . . Fabricators . | . . . . . . . . Repair Stations . | . . . . . . . . Recycling Units . | . . . . . . . . Scanalyzers . | . . . . . . . . Garrison Access 1 | . . . . . 1 . . Intercept 1 | . . . . . 1 . . Data Cores Recovered 1 | . 1 . . . . . . Used . | . . . . . . . . Hacking Detections 10 | . . . . . 5 4 1 Full Trace Events 5 | . . . . . 2 3 . Feedback Events 1 | . . . . . 1 . . Corruption 1 | . . . . . 1 . . Feedback Blocked . | . . . . . . . . Robot Schematics Acquired . | . . . . . . . . Robots Built . | . . . . . . . . Authchips . | . . . . . . . . Time . | . . . . . . . . Total Robot Build Rating . | . . . . . . . . Part Schematics Acquired 3 | . . . . . 2 . 1 Parts Built . | . . . . . . . . Authchips . | . . . . . . . . Time . | . . . . . . . . Total Part Build Rating . | . . . . . . . . Parts Repaired . | . . . . . . . . Time . | . . . . . . . . Parts Recycled . | . . . . . . . . Recycled Matter . | . . . . . . . . Retrieved Matter . | . . . . . . . . Retrieved Components . | . . . . . . . . Parts Scanalyzed 3 | . . . . . 2 . 1 Part Schematics Acquired 3 | . . . . . 2 . 1 Parts Damaged . | . . . . . . . . Bothacking | -11 -10 -10 -10 -9 -8 -8 -8 ------------ Run | Jun Mat Min Exi Min Mat Gar Mat Used RIF Installer 1 | . . . . . . 1 . Robots Hacked . | . . . . . . . . Non-combat . | . . . . . . . . Combat . | . . . . . . . . Robot Hacks Applied . | . . . . . . . . Relay Couplers Released 28 | . . . . . . 28 . Machine Destruction 28 | . . . . . . 28 . Attached 1 | . . . . . . . 1 Fabnet Peak Effective % . | . . . . . . . . Robots Rewired . | . . . . . . . . Allies Hacked . | . . . . . . . . Hacks Repelled . | . . . . . . . . Allies | -11 -10 -10 -10 -9 -8 -8 -8 -------- Run | Jun Mat Min Exi Min Mat Gar Mat Total Allies 4 | . . 3 . . . 1 . Largest Group 3 | . . 3 3 . . 1 . Highest-Rated Group 40 | . . 40 40 . . 25 . Highest-Rated Ally 25 | . . 16 16 . . 25 . Total Orders . | . . . . . . . . Ally Attacks 2 | . . . . . . 2 . Total Damage 61 | . . . . . . 61 . Kills 2 | . . . . . . 2 . Allies Corrupted 1 | . . . . . . 1 . Allies Melted . | . . . . . . . . Intel | -11 -10 -10 -10 -9 -8 -8 -8 ------- Run | Jun Mat Min Exi Min Mat Gar Mat Robot Analysis Total . | . . . . . . . . Derelict Logs Recovered 2 | . . 1 . 1 . . . Drone Launches . | . . . . . . . . Drone Recoveries . | . . . . . . . . Exploration | -11 -10 -10 -10 -9 -8 -8 -8 ------------- Run | Jun Mat Min Exi Min Mat Gar Mat Turns Passed 5463 | . 118 113 403 255 1734 2367 473 Spaces Moved 2532 | 1 84 86 389 240 568 997 167 Core . | . . . . . . . . Treads 1030 | . . . . . . 938 92 Legs 283 | 1 84 86 112 . . . . Wheels 1219 | . . . 277 240 568 59 75 Hover . | . . . . . . . . Flight . | . . . . . . . . Fastest Speed 90 | 120 120 120 90 90 90 152 90 Average Speed 160 | 120 120 120 98 90 207 176 183 Slowest Speed 310 | 120 120 120 120 90 310 240 240 Overloaded Moves . | . . . . . . . . Propulsion Burnouts . | . . . . . . . . Robots Hopped . | . . . . . . . . Cave-ins Triggered . | . . . . . . . . Exploration Rate (%) 40 | 2 21 22 78 43 45 94 18 Regions Visited 7 Branch Regions 3 Pre-discovered Areas 2 | . . 1 . 1 . . . Known Exits Taken 1 | . . . . . 1 . . Unknown Exits Taken 5 | 1 1 1 1 1 . . . Scrap Searched 1 | . . . . 1 . . . Spaces Dug . | . . . . . . . . Terrain Destroyed 110 | . . . . 7 5 94 4 Melee . | . . . . . . . . Projectile 6 | . . . . . . 2 4 AOE 104 | . . . . 7 5 92 . Terrain Rammed . | . . . . . . . . Walls Destroyed . | . . . . . . . . Machines Disabled . | . . . . . . . . Actions | -11 -10 -10 -10 -9 -8 -8 -8 --------- Run | Jun Mat Min Exi Min Mat Gar Mat Total 3475 | . 94 96 406 264 947 1389 279 Wait 447 | . 6 11 6 17 185 159 63 Move 2526 | . 83 85 388 239 568 996 167 Hop . | . . . . . . . . Pick Up 83 | . 1 . 3 . 43 31 5 Fast Attach 26 | . 1 . . . 15 5 5 Attach 20 | . . . . . 5 10 5 Detach 5 | . . . . . 4 1 . Swap 29 | . . . 4 . 10 14 1 Drop 61 | . . . 4 . 27 26 4 Fire 257 | . 3 . 1 8 90 133 22 Melee 7 | . . . . . . . 7 Ram . | . . . . . . . . Kick . | . . . . . . . . Crush . | . . . . . . . . Escape Stasis 14 | . . . . . . 14 . Rewire . | . . . . . . . . Trap . | . . . . . . . . Miscellaneous . | . . . . . . . . Route ------- -11/Junkyard -10/Materials -10/Mines -10/Exiles -9/Mines (discovered 2 exits: *Mat x2) -8/Materials -8/Garrison (discovered 3 exits: *Mat x3) -8/Materials History --------- Turn | Location | Event 1 | -11/Junkyard | Discovered new exit (range 0) 1 | -11/Junkyard | Entered Materials 96 | -10/Materials | Discovered new exit (range 8) 119 | -10/Materials | Entered Mines 172 | -10/Mines | Assisted by bots powering up and referring to "LRC-V3" 188 | -10/Mines | Met a Derelict bent on vengeance 193 | -10/Mines | Learned location of Zion (-6) 219 | -10/Mines | Deemed a non-threat by the Exiles lab entrance 219 | -10/Mines | Discovered new exit (range 5) 232 | -10/Mines | Entered Exiles 232 | -10/Exiles | Accompanied by 3 allies 265 | -10/Exiles | Met 8R-AWN 286 | -10/Exiles | Met EX-HEX 316 | -10/Exiles | Build established: Mutant 319 | -10/Exiles | Met EX-BIN 334 | -10/Exiles | Aligned with FarCom system 335 | -10/Exiles | Given EX-Vault access code 364 | -10/Exiles | Opened EX-Vault 377 | -10/Exiles | Found Lightpack 2.0 380 | -10/Exiles | Found Trap Reconfigurator 398 | -10/Exiles | Warned to stay clear of 0b10 Research branches 424 | -10/Exiles | Met EX-DEC 511 | -10/Exiles | Visited The Gauntlet 621 | -10/Exiles | Discovered new exit (range 11) 635 | -10/Exiles | Stole two prototypes: Lightpack 2.0, Trap Reconfigurator 635 | -10/Exiles | Entered Mines 650 | -9/Mines | Assembled infested the area 655 | -9/Mines | Assisted by a Guerilla fighting off Assembled 829 | -9/Mines | Discovered new exit (range 4) 848 | -9/Mines | Discovered new exit (range 5) 890 | -9/Mines | Entered Materials 890 | -8/Materials | Evolved 4 slots: Utility x4 1207 | -8/Materials | Build established: Hauler-Mutant 2431 | -8/Materials | Garrison activated, responded to threat 2624 | -8/Materials | Identified exit to Garrison 2624 | -8/Materials | Entered Garrison 2764 | -8/Garrison | Spotted B-75 Beast 2805 | -8/Garrison | Destroyed B-75 Beast 2835 | -8/Garrison | Lost 5 parts (1p1n2u1w) 3098 | -8/Garrison | Triggered checkpoint 3153 | -8/Garrison | Garrison Relay disabled 3246 | -8/Garrison | Core integrity fell below 50% 3414 | -8/Garrison | Triggered checkpoint 3500 | -8/Garrison | Triggered checkpoint 3581 | -8/Garrison | Rescued a captive Derelict 3612 | -8/Garrison | Triggered checkpoint 3636 | -8/Garrison | Discovered new exit (range 11) 3645 | -8/Garrison | Learned Materials security intel 3686 | -8/Garrison | Garrison Relay disabled 3882 | -8/Garrison | Garrison Relay disabled 3930 | -8/Garrison | Garrison Relay disabled 3994 | -8/Garrison | Garrison Relay disabled 4096 | -8/Garrison | Discovered new exit (range 9) 4190 | -8/Garrison | Triggered checkpoint 4261 | -8/Garrison | Garrison Relay disabled 4286 | -8/Garrison | Triggered checkpoint 4313 | -8/Garrison | Discovered new exit (range 14) 4699 | -8/Garrison | Phase Generator disabled 4735 | -8/Garrison | Installed Relay Interface Framework 4991 | -8/Garrison | Entered Materials 5029 | -8/Materials | Build established: Bothacker-Mutant 5345 | -8/Materials | Lost 3 parts (1p1n1w) 5391 | -8/Materials | First assault squad dispatched 5395 | -8/Materials | Core integrity fell below 20% 5464 | -8/Materials | Destroyed by G-47 Trooper with Particle Gun Last Messages --------------- 05449_ Knocked back. 05449_ K-01 Serf collects debris. 05451_ U-05 Engineer builds a Wall. 05451_ Hrd. Medium Armor Plating destroyed. 05451_ Knocked back. 05451_ U-05 Engineer system corrupted by crushing effect. 05452_ U-05 Engineer system terminally corrupted. 05452_ K-01 Serf collects debris. 05454_ Knocked back. 05455_ System corrupted: Heat flow error (+152). 05455_ Acquired 2 matter. 05456_ K-01 Serf collects debris. 05459_ Knocked back. 05460_ K-01 Serf collects debris. 05464_ C-30 ARC bursts open, deploying its payload. 05464_ G-50 Soldier unfolds itself. 05464_ L-31 Rogue unfolds itself. 05464_ G-47 Trooper unfolds itself. 05464_ M-28 Smith unfolds itself. 05464_ Critical hit (Burn: +37). Map ----- +----------------------------------------------------+ | ?????????????????????????????????????????????????? | | ?????????????????????????????????????????????????? | | ?????????????????????????????????????????????????? | | ?????????????????????????????????????????????????? | | ?????????????????????????????????????????????????? | | ?????????????????????????????????????????????????? | | ?????????????????????????????????????????????????? | | ?????????????????????????????????????????????????? | | ?????????????????????????????????????????????????? | | ?????????????????????????????????????????????????? | | ?????????????????????????????????????????????????? | | ?????????????????????????????????????????????????? | | ???????????????????????????????????g?????????????? | | ?????????????????????????????????????????????????? | | ?????????????????????????????????????????????????? | | ?????????????????????????????????????????????????? | | ??????????????????########???????????????????????? | | ??????????????????# #???????????????????????? | | ??????????????????#""" !#???????????????????????? | | ??????????????????#""" #???????????????????????? | | ??????????????????#""" #???????????????????????? | | ??????????????????#""" #???????????????????????? | | ????????#####?????# #???????????? ?????????? | | ????????# ?#######;######+###g #????????? | | ????????# [ ?#k= % % % g%g #????????? | | ????????# #*=! !%%@ lm +????????? | | ????????# " " #!!!% = % H #????????? | | ????????# "R" +%%!#########;#### #????????? | | ????????# """ # *!#????????##?????? ?????????? | | ????????######## #?????????????????????????????? | | ???????????????# ##########????????????????????? | | ???????????????# # """""???????????????????? | | ??????? ???????# =#=[ """""???????????????????? | | ?????# ??????# ]!#[! """" #????????????????? | | ?????# ??????#!]%+ = #????????????????? | | ?????# ??????#%%!#=[ #????????????????? | | ?????# ??????#=/%##############????????????????? | | ????## ####### ##] ! #?????????????????????? | | ????# # #?????????????????????? | | ????# # """#?????????????????????? | | ????# """" + """#?????????????????????? | | ????# """% # """#?????????????????????? | | ????# """" # #?????????????????????? | | ?????## ##########?????????????????????? | | ??????# #??????????????????????????????? | | #######+# !// #??????????????????????????????? | | ?# !// #########??????????????????????? | | # // ## #??????????????????????? | | # # "S #??????????????????????? | | + # """ #??????????????????????? | +----------------------------------------------------+ Best States ------------- Heat Dissipation 59 Energy Generation 18 Energy Capacity 275 Matter Stores 300 Matter Capacity 300 Sight Range 16 Terrain Scan Density 10 Armor Coverage 675 Resistance: TH 15 Propulsion Shielding 66 Evasion (%) 55 Target Analysis 6 Core Analysis 6 Recoil Reduction 2 Relay Coupler Types 1 Relay Coupler Value 19 Item Schematics ----------------- Enh. Autogun | -8/Materials | Scanalyzed Adv. Treads | -8/Materials | Scanalyzed Imp. Cesium-ion Thruster | -8/Materials | Scanalyzed Robot Schematics ------------------ None Fabricated ------------ Nothing Alien Tech Used ----------------- None Achievements -------------- None Challenges ------------ None Game ------ Seed DisruptionMediumBrace Manual? 0 Play Time 00:40:06 Cumulative 515.0 hours Start 2023.03.29 @ 16:18:01 End 2023.03.29 @ 16:54:22 Sessions 1 Manual Loads 0 Difficulty Rogue Special Mode None Game No. 548 Rogue 548 Adventurer 0 Explorer 0 Win Type - Total 1 Types 1/0/0/0/0/0/0/0/0 Lore% 64 Gallery% 83 Achievement% 65 Wizard Run 0 Options --------- ASCII 0 Keyboard 0 Movement Mouse Keybinds 0 Fullscreen 2 Font 24/Smallcaps Map View 76x50 Tactical HUD 1 Map Filters NONE Filters NONE Steam 1 RUN: 2b431d86-ebe1-42a5-b762-ff93728010d7